Cogmind - Beta 17 *** ADVENTURER MODE // 2026.06.27 @ 18:35:15 Player: Archangel Result: Self-destructed Performance ------------- Evolutions (2) 1000 Regions Visited (3) 600 Robots Destroyed (62) 310 Value Destroyed (2011) 2011 Prototype IDs (7) 140 Alien Tech Used (0) 0 Bonus (0) 0 TOTAL SCORE: 4061 Bonus ------- None Cogmind --------- Core Integrity 491/550 Matter 147/300 Energy 380/380 System Corruption 0% Temperature Cool (9) Movement Walking (120) Location -8/Materials Parts ------- > --- POWER (2) -------- Nuclear Core Nuclear Core > --- PROPULSION (4) --- Aluminum Leg Aluminum Leg Improved Aluminum Leg > --- UTILITY (3) ------ Improved Heat Sink Small Storage Unit Hacking Suite > --- WEAPON (2) ------- Missile Launcher Missile Launcher > --- INVENTORY (8) ---- Nuclear Core Nuclear Core Particle Cannon Particle Cannon High-powered Shotgun Mini Grenade Launcher Missile Launcher Peak State ------------ > --- POWER ------------ Nuclear Core Nuclear Core > --- PROPULSION ------- Aluminum Leg Aluminum Leg Improved Aluminum Leg Improved Aluminum Leg > --- UTILITY ---------- Improved Heat Sink Small Storage Unit Hacking Suite > --- WEAPON ----------- High-powered Shotgun Missile Launcher > --- INVENTORY -------- Nuclear Core Nuclear Core Particle Cannon Particle Cannon Mini Grenade Launcher Missile Launcher Missile Launcher [Rating: 26] Favorites ----------- Power Nuclear Core Engine Ion Engine Power Core Nuclear Core Propulsion Aluminum Leg Leg Aluminum Leg Utility Small Storage Unit Device Improved Heat Sink Storage Small Storage Unit Hackware Hacking Suite Protection Weapon Shielding Weapon Particle Cannon Energy Cannon Particle Cannon Ballistic Gun Light Assault Rifle Launcher Rocket Launcher Build | -11 -10 -9 -8 ------- Run | Yrd Mat Mat Mat Slots Evolved 4 | . . 2 2 Power 1 | . . 1 . Propulsion 2 | . . 1 1 Utility 1 | . . . 1 Weapon . | . . . . Parts Attached 41 | 6 13 20 2 Power 10 | 1 3 6 . Engine 6 | 1 2 3 . Core 4 | . 1 3 . Reactor . | . . . . Propulsion 14 | 2 4 8 . Treads . | . . . . Leg 14 | 2 4 8 . Wheel . | . . . . Hover . | . . . . Flight . | . . . . Utility 5 | 1 3 . 1 Device 1 | . 1 . . Storage 2 | 1 1 . . Processor . | . . . . Hackware 1 | . . . 1 Protection 1 | . 1 . . Artifact . | . . . . Weapon 12 | 2 3 6 1 Energy Gun . | . . . . Energy Cannon 3 | . 2 1 . Ballistic Gun 4 | 2 1 . 1 Ballistic Cannon . | . . . . Launcher 5 | . . 5 . Special Weapon . | . . . . Impact Weapon . | . . . . Slashing Weapon . | . . . . Piercing Weapon . | . . . . Special Melee Weapon . | . . . . Unidentified Prototypes 1 | . . 1 . Parts Lost 5 | . 1 3 1 Power 3 | . 1 2 . Propulsion 2 | . . 1 1 Utility . | . . . . Weapon . | . . . . Highest Loss Streak 2 | . 1 2 1 To Critical Strikes . | . . . . Average Backups 6 | 1 5 7 7 Power 1 | . 1 1 2 Propulsion 1 | . 2 2 . Utility . | . . . . Weapon 2 | . 1 3 4 Tool/Special . | . . . . Unused Backups 9 | 1 4 1 3 Power 3 | . 2 . 1 Propulsion 2 | . 1 1 . Utility 1 | . 1 . . Weapon 3 | 1 . . 2 Tool/Special . | . . . . Average Slot Usage (%) 98 | . 99 97 97 Engine 8 | . 11 9 . Core 8 | . 2 10 18 Leg 31 | . 28 32 33 Device 7 | . 1 11 9 Storage 11 | . 13 10 9 Hackware 1 | . . . 9 Protection 4 | . 12 . . Energy Cannon 10 | . 3 16 5 Ballistic Gun 8 | . 24 . 2 Launcher 4 | . . 5 9 Peak Build Rating 26 | 6 11 22 26 Average Rating 15 | 4 8 18 25 On Entrance 9 | . 6 11 21 Avg Prop Armor Cover (%) . | . . . . Naked Turns . | . . . . Heaviest Build 94 | 12 94 32 32 Greatest Support 46 | 20 20 39 46 Greatest Overweight (x) 4 | 3 4 . . Average Overweight (x) . | . . . . Largest Inventory Capacity 25 | 8 25 8 8 Average Capacity 7 | 7 8 7 8 Most Carried 8 | 4 8 8 8 Average Carried 6 | 1 5 7 7 Final Capacity 8 | 8 8 8 8 Final Carried 8 | 1 7 8 7 Class Distribution -------------------- 73% | Mutant 13% | Scavenger-Mutant 12% | Hacker-Mutant Dominant Class ---------------- Mutant | -10/Materials Mutant | -9/Materials Hacker-Mutant | -8/Materials Resources | -11 -10 -9 -8 ----------- Run | Yrd Mat Mat Mat Matter Collected 1267 | 252 167 733 115 Remotely . | . . . . Salvage Created 1861 | . 442 1096 323 Parts 114 | . 33 64 17 Haulers Intercepted . | . . . . Recyclers Shooed . | . . . . Parts Field Recycled . | . . . . Retrieved Matter . | . . . . Parts Self-Destructed . | . . . . Prevented . | . . . . Parts Restored . | . . . . Kills | -11 -10 -9 -8 ------- Run | Yrd Mat Mat Mat Combat Hostiles Destroyed 54 | . 13 29 12 Guns 19 | . 13 . 6 Cannons 23 | . . 22 1 AOE 12 | . . 7 5 Classes Destroyed 8 | . 3 5 . Worker 1 | . . 1 . Builder 4 | . 1 2 1 Operator 1 | . . 1 . Watcher 2 | . . 2 . Swarmer 9 | . 5 . 4 Grunt 38 | . 8 24 6 Duelist 1 | . . 1 . Sentry 6 | . . 4 2 Best Kill Streak 7 | . 3 7 5 Combat Bots Only 5 | . 3 5 5 Max Kills in Single Turn 4 | . 1 2 4 Gunslinging . | . . . . Exploded 3 | . . 1 3 Melee . | . . . . Uniques/NPCs Destroyed . | . . . . Combat | -11 -10 -9 -8 -------- Run | Yrd Mat Mat Mat Hostile Shots Fired 271 | . 67 125 79 Missed 85 | . 17 43 25 Hits 186 | . 50 82 54 Projectile 186 | . 50 82 54 Critical Strikes 6 | . 1 3 2 Actively Blocked 1 | . 1 . . Damage Taken 2218 | . 392 1273 553 Core 354 | . 67 228 59 Absorbed by Shields . | . . . . Redirected to Shielding 27 | . 27 . . Ignored by Resistances 564 | . 130 272 162 Regen/Repaired (Parts) 201 | . 40 161 . Core Remaining (%) 72 | 100 73 43 . Volleys Fired 112 | . 37 54 21 Largest 2 | . 2 2 2 Hottest 136 | . 40 136 93 Shots Fired 226 | . 75 109 42 Gun 89 | . 74 . 15 Cannon 102 | . 1 86 15 Launcher 35 | . . 23 12 Special . | . . . . Kinetic 89 | . 74 . 15 Thermal 102 | . 1 86 15 Explosive 35 | . . 23 12 Electromagnetic . | . . . . Robot Hit Streak 24 | . 23 18 24 Robot Miss Streak 3 | . 2 2 3 Penetration Max . | . . . . Secondary Targets 3 | . 3 . . Max Gunslinging Chain 1 | . 1 . . Shots Hit Robots 169 | . 61 80 28 Core Hits 104 | . 28 49 27 Critical Kills 2 | . 2 . . Critical Parts Destroyed . | . . . . Critical Strikes 2 | . 2 . . Destroy 2 | . 2 . . Melee Attacks . | . . . . Impact . | . . . . Slashing . | . . . . Piercing . | . . . . Sneak Attacks . | . . . . Combat Hostiles . | . . . . Follow-up Attacks . | . . . . Damage Inflicted 4213 | . 497 2552 1164 Guns 709 | . 476 . 233 Cannons 1622 | . 21 1373 228 Explosions 1873 | . . 1170 703 Melee . | . . . . Ramming 9 | . . 9 . Kinetic 709 | . 476 . 233 Thermal 1622 | . 21 1373 228 Explosive 1873 | . . 1170 703 Electromagnetic . | . . . . Impact . | . . . . Slashing . | . . . . Piercing . | . . . . Highest Corruption 7 | . 1 7 . Average Corruption 4 | . 1 6 . Corruption Purged . | . . . . Corruption Blocked . | . . . . Effects 59 | . 6 53 . Message Errors 17 | . 3 14 . Matter Fused 9 | . . 9 . Heat Flow Errors 9 | . . 9 . Energy Discharges 7 | . . 7 . Data Loss (minor) 7 | . 2 5 . Data Loss (major) 4 | . . 4 . Misfires 3 | . 1 2 . Alerts 2 | . . 2 . Weapon Failures 1 | . . 1 . Overload Shots . | . . . . Overflow Damage 28 | . . 23 5 Projectiles 13 | . . 13 . Explosions 15 | . . 10 5 Melee . | . . . . Knockbacks . | . . . . Impact . | . . . . Kinetic . | . . . . Secondary . | . . . . Self-Inflicted Damage 143 | . . 115 28 Shots 5 | . . 3 2 Rammed . | . . . . Targets Rammed 1 | . . 1 . Kicked 1 | . . 1 . Crushed . | . . . . Highest Temperature 361 | . 30 361 35 Average Temperature 84 | . 11 108 16 Received Heat Transfer 996 | . 192 543 261 Effects 1 | . . 1 . Shutdowns 1 | . . 1 . Siege Activations . | . . . . Martial Activations . | . . . . Shielding Activations . | . . . . Robots Disrupted . | . . . . Combat Hostiles . | . . . . Robots Corrupted . | . . . . Combat Hostiles . | . . . . Parts Fried . | . . . . Impact Corruptions . | . . . . Robots Melted . | . . . . Combat Hostiles . | . . . . Parts Melted 6 | . . 5 1 Heat Transferred 2923 | . 37 2479 407 Parts Sabotaged . | . . . . Parts Stolen . | . . . . Parts Stripped . | . . . . Power Chain Reactions . | . . . . Alert | -11 -10 -9 -8 ------- Run | Yrd Mat Mat Mat Maximum Alert Level 1 | . . 1 1 Low Security (%) 82 | 100 100 68 90 Level 1 17 | . . 31 9 Level 2 . | . . . . Level 3 . | . . . . Level 4 . | . . . . Level 5 . | . . . . High Security . | . . . . Max Security . | . . . . Peak Influence 295 | . 100 295 254 Initial 66 | . . . 66 Average 105 | . 22 155 143 Influence Increases 1942 | . 402 1131 409 Destroy 0b10 Robot/C 1080 | . 260 580 240 Destroy 0b10 Robot/NC 40 | . 5 30 5 Destroy Leader 234 | . 60 134 40 Successful Hack 112 | . 47 54 11 Disable Machine 90 | . . 45 45 Destroy Structure 191 | . . 138 53 Lose Combat Pursuer 195 | . 30 150 15 Influence Decreases 1697 | . 402 946 349 Entered New Map 119 | . . . 119 Time Decay 1508 | . 372 916 220 Lost Part 50 | . 10 30 10 Purge Threat 20 | . 20 . . Squads Dispatched 9 | . 2 5 2 Investigation 7 | . 2 4 1 Extermination . | . . . . Reinforcement 2 | . . 1 1 Assault . | . . . . Garrison . | . . . . Intercept . | . . . . Searches Triggered . | . . . . Construction Impeded 1 | . . 1 . Haulers Reinforced . | . . . . Active Scanning Responses . | . . . . Cargo Convoy Interrupts . | . . . . Stealth | -11 -10 -9 -8 --------- Run | Yrd Mat Mat Mat Distress Signals 1 | . . 1 . Communications Jammed . | . . . . Distress Signals . | . . . . Times Spotted 85 | . 27 43 15 Peak Tracking Total 7 | . 6 5 7 Tactical Retreats 8 | . 1 6 1 Traps | -11 -10 -9 -8 ------- Run | Yrd Mat Mat Mat Traps Triggered 1 | . 1 . . Indirectly . | . . . . Trap Hack Attempts . | . . . . Triggered . | . . . . Disarmed . | . . . . Reprogrammed . | . . . . Reused . | . . . . Traps Extracted . | . . . . Installed . | . . . . Triggered . | . . . . Machines | -11 -10 -9 -8 ---------- Run | Yrd Mat Mat Mat Machines Disabled 11 | . . 6 5 Max in Single Turn 2 | . . 1 2 Machines Repaired . | . . . . Machines Dismantled . | . . . . Machines Sabotaged . | . . . . Overloaded Fab Kills . | . . . . Hacking | -11 -10 -9 -8 --------- Run | Yrd Mat Mat Mat Machines Accessed 24 | . 11 11 2 Terminals 16 | . 8 7 1 Fabricators . | . . . . Repair Stations 3 | . 1 2 . Recycling Units 4 | . 2 1 1 Scanalyzers 1 | . . 1 . Garrison Access . | . . . . Total Hacks 101 | . 48 47 6 Successful 65 | . 32 27 6 Failed 36 | . 16 20 . Catastrophic 5 | . . 5 . Database Lockouts . | . . . . Manual 2 | . . 2 . Terminals 80 | . 39 36 5 Fabricators . | . . . . Repair Stations 11 | . 7 4 . Recycling Units 7 | . 2 4 1 Scanalyzers 3 | . . 3 . Garrison Access . | . . . . Terminal Hacks 46 | . 24 17 5 Record 8 | . 4 3 1 Prototype ID Bank 3 | . 2 1 . Branch Access Points 1 | . . 1 . Emergency Access Points 5 | . 3 2 . Recycling Unit Index 2 | . 1 . 1 Alert Level 4 | . 1 2 1 Unreport Threat 1 | . 1 . . Locate Traps 1 | . . . 1 Dispatch Records 3 | . 2 1 . Maintenance Status 2 | . 2 . . Security Status 1 | . 1 . . Patrol Status 2 | . . 1 1 Investigation Status 1 | . . 1 . Reinforcement Status 1 | . . 1 . Recall Reinforcements 1 | . 1 . . Hauler Manifests 3 | . 2 1 . Registered Components 1 | . 1 . . Registered Prototypes 2 | . 1 1 . Zone Layout 4 | . 2 2 . Fabricator Hacks . | . . . . Repair Station Hacks 10 | . 6 4 . Scan Component 5 | . 3 2 . Repair 5 | . 3 2 . Recycling Unit Hacks 6 | . 2 3 1 Process 1 | . . 1 . Report Inventory 4 | . 2 1 1 Retrieve Matter 1 | . . 1 . Scanalyzer 3 | . . 3 . Insert Component 1 | . . 1 . Analyze 1 | . . 1 . Retrieve Study 1 | . . 1 . Garrison Access Hacks . | . . . . Unauthorized Hacks . | . . . . Terminals . | . . . . Fabricators . | . . . . Repair Stations . | . . . . Recycling Units . | . . . . Scanalyzers . | . . . . Garrison Access . | . . . . Data Cores Recovered . | . . . . Used . | . . . . Hacking Detections 21 | . 10 10 1 Full Trace Events 15 | . 8 6 1 Feedback Events 2 | . 1 1 . Corruption 2 | . 1 1 . Feedback Blocked . | . . . . Robot Schematics Acquired . | . . . . Robots Built . | . . . . Authchips . | . . . . Time . | . . . . Total Robot Build Rating . | . . . . Part Schematics Acquired 1 | . . 1 . Parts Built . | . . . . Authchips . | . . . . Time . | . . . . Total Part Build Rating . | . . . . Part Studies Acquired 1 | . . 1 . Parts Repaired 5 | . 3 2 . Time 120 | . 78 42 . Parts Recycled . | . . . . Recycled Matter 207 | . . 207 . Retrieved Matter 305 | . . 305 . Retrieved Components . | . . . . Parts Scanalyzed 1 | . . 1 . Part Schematics Acquired 1 | . . 1 . Parts Damaged . | . . . . Bothacking | -11 -10 -9 -8 ------------ Run | Yrd Mat Mat Mat Used RIF Installer . | . . . . Robots Hacked . | . . . . Non-combat . | . . . . Combat . | . . . . Robot Hacks Applied . | . . . . Relay Couplers Released . | . . . . Fabnet Peak Effective % . | . . . . Robots Rewired . | . . . . Allies Hacked . | . . . . Hacks Repelled . | . . . . Allies | -11 -10 -9 -8 -------- Run | Yrd Mat Mat Mat Total Allies . | . . . . Largest Group . | . . . . Highest-Rated Group . | . . . . Highest-Rated Ally . | . . . . Total Orders . | . . . . Ally Attacks . | . . . . Total Damage . | . . . . Kills . | . . . . Allies Corrupted . | . . . . Allies Melted . | . . . . Intel | -11 -10 -9 -8 ------- Run | Yrd Mat Mat Mat Active Infowar (turns) . | . . . . Robot Analysis Total . | . . . . Derelict Logs Recovered . | . . . . Drone Launches . | . . . . Drone Recoveries . | . . . . Exploration | -11 -10 -9 -8 ------------- Run | Yrd Mat Mat Mat Turns Passed 3624 | 98 1212 1863 451 Spaces Moved 2230 | 66 805 1165 194 Core 18 | 18 . . . Treads . | . . . . Legs 2212 | 48 805 1165 194 Wheels . | . . . . Hover . | . . . . Flight . | . . . . Fastest Speed 50 | 50 120 120 120 Average Speed 120 | 125 120 120 120 Slowest Speed 400 | 200 400 120 120 Overloaded Moves . | . . . . Propulsion Burnouts . | . . . . Robots Hopped . | . . . . Potential Cave-ins . | . . . . Cave-ins Triggered 1 | . . 1 . Exploration Rate (%) 47 | 4 98 73 14 Regions Visited 3 Branch Regions . Pre-discovered Areas . | . . . . Known Exits Taken . | . . . . Unknown Exits Taken 3 | 1 1 1 . Scrap Searched . | . . . . Spaces Dug . | . . . . Terrain Destroyed 244 | . . 178 66 Melee . | . . . . Projectile . | . . . . AOE 244 | . . 178 66 Terrain Rammed . | . . . . Walls Destroyed . | . . . . Machines Disabled . | . . . . Actions | -11 -10 -9 -8 --------- Run | Yrd Mat Mat Mat Total 2954 | 81 993 1514 366 Wait 454 | 1 91 217 145 Move 2227 | 65 804 1164 194 Hop . | . . . . Pick Up 62 | 8 28 25 1 Fast Attach 2 | . . 2 . Attach 23 | 6 7 8 2 Detach . | . . . . Swap 38 | . 9 26 3 Drop 35 | 1 17 17 . Fire 112 | . 37 54 21 Melee . | . . . . Ram . | . . . . Kick 1 | . . 1 . Crush . | . . . . Escape Stasis . | . . . . Rewire . | . . . . Trap . | . . . . Miscellaneous . | . . . . Route ------- -11/Scrapyard -10/Materials (discovered 5 exits: *Mat x3 / [*Min x2]) -9/Materials (discovered 2 exits: *Mat / *Min) -8/Materials History --------- Turn | Location | Event 18 | -11/Scrapyard | Discovered new exit (range 15) 99 | -11/Scrapyard | Entered Materials 139 | -10/Materials | Discovered new exit (range 15) 225 | -10/Materials | Discovered new exit (range 17) 275 | -10/Materials | Repaired Aluminum Leg 301 | -10/Materials | Repaired Ion Engine 326 | -10/Materials | Build established: Mutant 332 | -10/Materials | Repaired Aluminum Leg 586 | -10/Materials | Discovered new exit (range 16) 994 | -10/Materials | Discovered new exit (range 15) 1282 | -10/Materials | Discovered new exit (range 15) 1311 | -10/Materials | Entered another Materials area 1311 | -9/Materials | Evolved 2 slots: Power x1, Propulsion x1 1534 | -9/Materials | Crushed by falling debris 1821 | -9/Materials | Identified exit to Mines 2417 | -9/Materials | Repaired Sml. Storage Unit 2801 | -9/Materials | Discovered new exit (range 16) 2854 | -9/Materials | Repaired Imp. Aluminum Leg 2984 | -9/Materials | Core integrity fell below 50% 3174 | -9/Materials | Entered another Materials area 3174 | -8/Materials | Evolved 2 slots: Propulsion x1, Utility x1 3479 | -8/Materials | Build established: Hacker-Mutant 3625 | -8/Materials | Self-destructed Last Messages --------------- 03446_ U-05 Engineer builds a Wall. 03450_ U-05 Engineer lays Concrete. 03484_ U-05 Engineer builds a Wall. 03492_ U-05 Engineer lays Concrete. 03529_ U-05 Engineer builds a Wall. 03570_ U-05 Engineer lays Concrete. 03578_ U-05 Engineer builds a Wall. 03587_ U-05 Engineer lays Concrete. 03612_ G-47 Trooper destroyed. [Achievement: Remodeling] 03612_ Destroyed Imp. Heat Sink. 03614_ U-05 Engineer lays Concrete. 03615_ G-47 Trooper destroyed. 03615_ U-05 Engineer destroyed. 03615_ G-47 Trooper destroyed. 03618_ Electrolysis Chamber disabled. 03621_ Imp. Aluminum Leg destroyed. 03624_ ALERT: Hostiles spotted, dispatching reinforcements to Terminal M002. 03625_ The unstable cave ceiling collapses. Map ----- +----------------------------------------------------+ | ?????????????????????????????????????????????????? | | ###########??###########?????????????????????????? | | # #### """ ########??????????????????? | | # + %+ "Y" / ???????????? | | #* # [#% ########??????????????????? | | # ![ # # % #?????????????????????????? | | # ! + # """ "" #?????????????????????????? | | + # # """ """ #?????????????????????????? | | # # + "" """ #?????????????????????????? | | # # #%[ % #?????????????????????????? | | ####+###### #####"#####??# ?????????????????????? | | ?????????? ???# #?????? ???????????????????? | | ?????????? ???# #?????? ????????????????? | | ?????????? ???# #?????# ??????????????? | | ?????????? ???# #????? # ??????????????? | | ?????????#####???# #??### #####??????????? | | ????????## #### #### / ]]! #??????????? | | ???? ^^ r =* ]!! #??????????? | | ???? T ^^ %=% =]!! #??????????? | | ???????### ######## * % #??????????? | | ?????????##+#??????### g << "#??????????? | | ??????????????????## g < T#??????????? | | ??????????????????## "#??????????? | | ??????????????????## ! #??????????? | | ??????????????????##" ######### #??????????? | | ??????????????????## @ #????????##??????????? | | ??????????????????## #????????????????????? | | ???????????????????# #????????????????????? | | ???????????????????# #????????????????????? | | ???????????????????##########????????????????????? | | | | | | | | | | | | | | | | | | | | | | | | | | | | | | | | | | | | | | | | | +----------------------------------------------------+ Best States ------------- Heat Dissipation 45 Energy Generation 23 Energy Capacity 445 Matter Stores 300 Matter Capacity 300 Sight Range 16 Terrain Scan Density 10 Resistance: KI 20 Resistance: TH 20 Resistance: EX 20 Resistance: EM 20 Resistance: I 20 Resistance: S 20 Resistance: P 20 Weapon Shielding 33 Evasion (%) 55 Offensive Hacking 20 Item Schematics ----------------- Rocket Launcher | -9/Materials | Scanalyzed Robot Schematics ------------------ None Fabricated ------------ Nothing Repaired ---------- Ion Engine | 86% | -10/Materials Aluminum Leg | 64% | -10/Materials Sml. Storage Unit | 26% | -9/Materials Imp. Aluminum Leg | 50% | -9/Materials Studied --------- Rocket Launcher | -9/Materials | Hacked Alien Tech Used ----------------- None Achievements -------------- Everything Is Under Control Maybe Next Time I'll Detach My Launcher Remodeling Resistances Are Futile That Tickles Unlikely Earthworm Challenges ------------ None Game ------ Seed CompactBackupTreads Manual? 0 Play Time 00:48:42 Cumulative 2.4 hours Start 2026.06.27 @ 16:03:10 End 2026.06.27 @ 18:35:15 Sessions 3 Manual Loads 0 Difficulty Adventurer Special Mode None Game No. 5 Rogue 0 Adventurer 5 Explorer 0 Win Type - Total 0 Types 0/0/0/0/0/0/0/0/0/0 Lore% 1 Gallery% 4 Achievement% 6 Wizard Run 0 Options --------- Layout 1 ASCII 0 Keyboard 0 Movement Numpad Keybinds 0 Fullscreen 1 Font 24/Smallcaps Map View 50x35 Zoom Use 0% Tactical HUD 1 Map Filters NONE Filters NONE Steam 1 RUN: 322c15f7-3c2f-415c-91dc-0795e7d51c8a